bitfinex/quotes_BTCUSD_20240727
["timestamp","ask_amount","ask_price","bid_price","bid_amount"]
[1722057052166,0.31102338,68050.0,68049.0,1.34702157]
[1722057055244,0.31103111,68050.0,68049.0,1.34702157]
[1722057055447,0.26691827,68050.0,68049.0,1.34702157]
[1722057056768,0.26691827,68050.0,68049.0,1.64092657]
[1722057057000,0.25898371,68050.0,68049.0,1.76302502]
[1722057057327,0.26923887,68050.0,68049.0,1.64092657]
[1722057058163,0.24618409,68050.0,68049.0,1.64092657]
[1722057058365,0.19181042,68050.0,68049.0,1.64092657]
[1722057059747,0.19181042,68050.0,68049.0,1.64183957]
[1722057063410,0.24632088,68050.0,68049.0,1.64183957]
[1722057064433,0.31251338,68050.0,68049.0,1.34793457]
[1722057065018,0.33556786,68050.0,68049.0,1.34793457]
[1722057065257,0.26937566,68050.0,68049.0,1.40853457]
[1722057065452,0.26937566,68050.0,68049.0,1.53063431]
[1722057065656,0.26937566,68050.0,68049.0,1.40853457]
[1722057065910,0.26937566,68050.0,68049.0,1.53063431]
[1722057067254,0.24632088,68050.0,68049.0,1.47003431]
[1722057068112,0.24753369,68050.0,68049.0,1.47003431]
[1722057070594,0.27058847,68050.0,68049.0,1.47003431]
[1722057070795,0.24753369,68050.0,68049.0,1.47003431]
[1722057071004,0.24623255,68050.0,68049.0,1.47003431]
[1722057072099,0.09181042,68050.0,68049.0,1.47003431]
[1722057073441,0.09181042,68050.0,68049.0,1.53063431]
[1722057074065,0.1148652,68050.0,68049.0,1.53063431]
[1722057074310,0.1148652,68050.0,68049.0,1.61063431]
[1722057075322,0.1148652,68050.0,68049.0,1.48853457]
[1722057075538,0.1148652,68050.0,68049.0,1.61063427]
[1722057078145,0.09181042,68050.0,68049.0,1.61063427]
[1722057078553,0.23871042,68050.0,68049.0,1.09962927]
[1722057078757,0.23871042,68050.0,68049.0,0.97752957]
[1722057078959,0.29288834,68050.0,68049.0,0.53667257]
[1722057079317,0.4032146,68050.0,68049.0,0.53667257]
[1722057081172,0.34903668,68050.0,68049.0,0.53667257]
[1722057081375,0.37209146,68050.0,68049.0,0.53667257]
[1722057081778,0.34903668,68050.0,68049.0,0.53667257]
[1722057082246,0.29158657,68050.0,68049.0,0.53667257]
[1722057082470,0.40192322,68050.0,68049.0,0.53667257]
[1722057082702,0.33762322,68050.0,68049.0,0.53667257]
[1722057085119,0.27807808,68050.0,68049.0,0.68362457]
[1722057085291,0.16774143,68050.0,68049.0,0.68362457]
[1722057085495,0.23295267,68050.0,68049.0,0.68362457]
[1722057085703,0.14468657,68050.0,68049.0,0.68362457]
[1722057086150,0.23295188,68050.0,68049.0,0.68362457]
[1722057086351,0.14468657,68050.0,68049.0,0.68362457]
[1722057086977,0.23295188,68050.0,68049.0,0.68362457]
[1722057088690,0.25600674,68050.0,68049.0,0.68362457]
[1722057089094,0.25600881,68050.0,68049.0,0.68362457]
[1722057090023,0.23295395,68050.0,68049.0,0.68362457]
[1722057090567,0.14468657,68050.0,68049.0,0.68362457]
[1722057090982,0.14468657,68050.0,68049.0,0.97752957]
[1722057092417,0.14551657,68050.0,68049.0,0.97752957]
[1722057092627,0.14551657,68050.0,68049.0,1.27143457]
[1722057092805,0.23378112,68050.0,68049.0,1.27143457]
[1722057093393,0.25683598,68050.0,68049.0,1.27143457]
[1722057093582,0.14551657,68050.0,68049.0,1.27143457]
[1722057093970,0.2337811,68050.0,68049.0,1.27143457]
[1722057096006,0.23377947,68050.0,68049.0,1.27143457]
[1722057096802,0.25683433,68050.0,68049.0,1.27143457]
[1722057097207,0.23377947,68050.0,68049.0,1.27143457]
[1722057099599,0.23377839,68050.0,68049.0,1.27143457]
[1722057099804,0.14551657,68050.0,68049.0,1.27143457]
[1722057100584,0.16857143,68050.0,68049.0,1.27143457]
[1722057100998,0.25683327,68050.0,68049.0,1.35113457]
[1722057101255,0.25683327,68050.0,68049.0,1.41273457]
[1722057101601,0.23377841,68050.0,68049.0,1.41273457]
[1722057102808,0.14551657,68050.0,68049.0,1.41273457]
[1722057103008,0.23377831,68050.0,68049.0,1.41273457]
[1722057104976,0.25683317,68050.0,68049.0,1.41273457]
[1722057105199,0.23583317,68050.0,68049.0,1.41273457]
[1722057105432,0.21277831,68050.0,68049.0,1.41273457]
[1722057108665,0.23583317,68050.0,68049.0,1.41273457]
[1722057109719,0.12451657,68050.0,68049.0,1.41273457]
[1722057109927,0.21278393,68050.0,68049.0,1.41273457]
[1722057113224,0.14757143,68050.0,68049.0,1.41273457]
[1722057113453,0.21278831,68050.0,68049.0,1.41273457]
[1722057116689,0.14757143,68050.0,68049.0,1.41273457]
[1722057116854,0.2127939,68050.0,68049.0,1.41273457]
[1722057118255,0.12451657,68050.0,68049.0,1.41273457]
[1722057120328,0.14757139,68050.0,68049.0,1.41273457]
[1722057121348,0.12451657,68050.0,68049.0,1.41273457]
[1722057124820,0.14757139,68050.0,68049.0,1.41273457]
[1722057125055,0.12451657,68050.0,68049.0,1.41273457]
[1722057125293,0.12465657,68050.0,68049.0,1.41273457]
[1722057127678,0.09278042,68050.0,68049.0,1.41273457]
[1722057127877,0.18715084,68050.0,68049.0,1.41273457]
[1722057128311,0.32058331,68050.0,68049.0,1.41273457]
[1722057128755,0.29752849,68050.0,68049.0,1.41273457]
[1722057129940,0.29753707,68050.0,68049.0,1.41273457]
[1722057130759,0.25035186,68050.0,68049.0,1.41273457]
[1722057131970,0.27340668,68050.0,68049.0,1.41273457]
[1722057133041,0.25035186,68050.0,68049.0,1.41273457]
[1722057133244,0.13996563,68050.0,68049.0,1.41273457]
[1722057133459,0.25036228,68050.0,68049.0,1.41273457]
[1722057136867,0.13996563,68050.0,68049.0,1.41273457]
[1722057137069,0.25036239,68050.0,68049.0,1.41273457]
[1722057137299,0.25036434,68050.0,68049.0,1.41273457]
[1722057137650,0.27341916,68050.0,68049.0,1.41273457]
[1722057140473,0.27342207,68050.0,68049.0,1.41273457]
[1722057140683,0.27342207,68050.0,68049.0,1.33303457]
[1722057143800,0.27342433,68050.0,68049.0,1.33303457]
[1722057145413,0.27342433,68050.0,68049.0,1.27143457]
[1722057146613,0.35282433,68050.0,68049.0,1.27143457]
[1722057147262,0.24242045,68050.0,68049.0,1.27143457]
[1722057147405,0.35282886,68050.0,68049.0,1.27143457]
[1722057148394,0.27342886,68050.0,68049.0,1.27143457]
[1722057150786,0.2734288,68050.0,68049.0,1.27143457]
[1722057153829,0.2734288,68050.0,68049.0,0.97752957]
[1722057154035,0.2734288,68050.0,68049.0,1.27143457]
[1722057154234,0.16302045,68050.0,68049.0,1.27143457]
[1722057154470,0.27342884,68050.0,68049.0,1.27143457]
[1722057157949,0.27342887,68050.0,68049.0,1.27143457]
[1722057161328,0.27342941,68050.0,68049.0,1.27143457]
[1722057161549,0.27342941,68050.0,68049.0,0.97752957]
[1722057164564,0.16302045,68050.0,68049.0,0.97752957]
[1722057164809,0.27342935,68050.0,68049.0,0.97752957]
[1722057166851,0.16302045,68050.0,68049.0,0.97752957]
[1722057167333,0.16302045,68050.0,68049.0,0.68362457]
[1722057167560,0.16302045,68050.0,68049.0,0.53667257]
[1722057167781,0.30997045,68050.0,68049.0,0.53667257]
[1722057168006,0.16302045,68050.0,68049.0,0.53667257]
[1722057169144,0.30997045,68050.0,68049.0,0.53667257]
[1722057169732,0.16302045,68050.0,68049.0,0.53667257]
[1722057171727,0.13996563,68050.0,68049.0,0.53667257]
[1722057174957,0.13996563,68050.0,68049.0,0.68362457]
[1722057175163,0.16302049,68050.0,68049.0,0.82182457]
[1722057175377,0.16302049,68050.0,68049.0,0.67487257]
[1722057176814,0.16302049,68050.0,68049.0,0.82182457]
[1722057180536,0.2734122,68050.0,68049.0,0.82182457]
[1722057181297,0.27341188,68050.0,68049.0,1.11572957]
[1722057183220,0.25035702,68050.0,68049.0,1.11572957]
[1722057184649,0.13996563,68050.0,68049.0,1.11572957]
[1722057184833,0.25035747,68050.0,68049.0,1.11572957]
[1722057186861,0.25035747,68050.0,68049.0,1.11072957]
[1722057187394,0.27341238,68050.0,68049.0,1.11072957]
[1722057187739,0.25035752,68050.0,68049.0,1.11072957]
[1722057188519,0.13996563,68050.0,68049.0,1.11072957]
[1722057190470,0.16302049,68050.0,68049.0,1.11072957]
[1722057191185,0.25035283,68050.0,68049.0,1.11072957]
[1722057191729,0.13996563,68050.0,68049.0,1.11072957]
[1722057191933,0.13996563,68050.0,68049.0,1.40463457]
[1722057192139,0.25035336,68050.0,68049.0,1.40463457]
[1722057192341,0.22827133,68050.0,68049.0,1.5267352]
[1722057192641,0.13996563,68050.0,68049.0,1.40463457]
[1722057192872,0.22827026,68050.0,68049.0,1.40463457]
[1722057193070,0.22827026,68050.0,68049.0,1.52673654]
[1722057193276,0.22827026,68050.0,68049.0,1.40463457]
[1722057193277,0.13996563,68050.0,68049.0,1.40463457]
[1722057193610,0.22826897,68050.0,68049.0,1.40463457]
[1722057193789,0.13996563,68050.0,68049.0,1.40463457]
[1722057194219,0.16302049,68050.0,68049.0,1.40463457]
[1722057194625,0.25132295,68050.0,68049.0,1.40463457]
[1722057194827,0.25132302,68050.0,68049.0,1.40463457]
[1722057194938,0.25132293,68050.0,68049.0,1.40463457]
[1722057195298,0.16302049,68050.0,68049.0,1.40463457]
[1722057195654,0.13996563,68050.0,68049.0,1.40463457]
[1722057198752,0.25131995,68050.0,68049.0,1.40463457]
[1722057198948,0.13996563,68050.0,68049.0,1.40463457]
[1722057202282,0.16302049,68050.0,68049.0,1.40463457]
[1722057202686,0.13996563,68050.0,68049.0,1.40463457]
[1722057206062,0.16302045,68050.0,68049.0,1.40463457]
[1722057206427,0.13996563,68050.0,68049.0,1.40463457]
[1722057209853,0.16302045,68050.0,68049.0,1.40463457]
[1722057210887,0.13996563,68050.0,68049.0,1.40463457]
[1722057214265,0.16302045,68050.0,68049.0,1.40463457]
[1722057214459,0.13996563,68050.0,68049.0,1.40463457]
[1722057217818,0.16302045,68050.0,68049.0,1.40463457]
[1722057218365,0.13996563,68050.0,68049.0,1.40463457]
[1722057220460,0.13996563,68050.0,68049.0,1.69853957]
[1722057221559,0.16302045,68050.0,68049.0,1.69853957]
[1722057223782,0.27339687,68050.0,68049.0,1.69853957]
[1722057223977,0.16302045,68050.0,68049.0,1.69853957]
[1722057227465,0.16302045,68050.0,68049.0,1.82063898]
[1722057227667,0.13996563,68050.0,68049.0,1.82063898]
[1722057229824,0.13996563,68050.0,68049.0,1.82063859]
[1722057230627,0.20618414,68050.0,68049.0,1.82063859]
[1722057231065,0.22923892,68050.0,68049.0,1.82063859]
[1722057231265,0.22923885,68050.0,68049.0,1.82063859]
[1722057231471,0.20618407,68050.0,68049.0,1.82063859]
[1722057232258,0.13996563,68050.0,68049.0,1.82063859]
[1722057232458,0.04815521,68050.0,68049.0,1.82063859]
[1722057232681,0.11437112,68050.0,68049.0,1.82063859]
[1722057232999,0.20618154,68050.0,68049.0,1.82063859]
[1722057233215,0.20618154,68050.0,68049.0,1.69853957]
[1722057233216,0.04815521,68050.0,68049.0,1.69853957]
[1722057233362,0.11437112,68050.0,68049.0,1.82063794]
[1722057233571,0.11430686,68050.0,68049.0,1.82063794]
[1722057234710,0.13736164,68050.0,68049.0,1.82063794]
[1722057235884,0.09017643,68050.0,68049.0,1.82063794]
[1722057236851,0.09017555,68050.0,68049.0,1.82063756]
[1722057237986,0.02396052,68050.0,68049.0,1.82946551]
[1722057238208,0.02396052,68050.0,68049.0,2.12337051]
[1722057240125,0.02396052,68050.0,68049.0,1.70736752]
[1722057240326,0.02396052,68050.0,68049.0,1.82946366]
[1722057240704,0.02396052,68050.0,68049.0,1.90596366]
[1722057240910,0.02396052,68050.0,68049.0,1.89713571]
[1722057246031,0.00090574,68050.0,68049.0,1.89713571]
[1722057246245,0.00090574,68050.0,68049.0,1.89713572]
[1722057247393,0.00090574,68050.0,68049.0,1.77503957]
[1722057247623,0.00090574,68050.0,68049.0,1.89713572]
[1722057249491,0.02396015,68050.0,68049.0,1.89713572]
[1722057249698,0.02396015,68050.0,68049.0,1.89713573]
[1722057250310,0.06809113,68050.0,68049.0,1.89713573]
[1722057253270,0.06809069,68050.0,68049.0,1.89713572]
[1722057253688,0.09015596,68050.0,68049.0,1.89713572]
[1722057254076,0.06710155,68050.0,68049.0,1.89713572]
[1722057254442,0.1112621,68050.0,68049.0,1.89713572]
[1722057256773,0.1112621,68050.0,68049.0,1.89713905]
[1722057256774,0.11126559,68050.0,68049.0,1.89713905]
[1722057257451,0.13432005,68050.0,68049.0,1.89713905]
[1722057258683,0.11126559,68050.0,68049.0,1.89713905]
[1722057260096,0.11126776,68050.0,68049.0,1.89713905]
[1722057262069,0.13432226,68050.0,68049.0,1.89713905]
[1722057263053,0.11126776,68050.0,68049.0,1.89713905]
[1722057263656,0.11127073,68050.0,68049.0,1.89713696]
[1722057266382,0.13432519,68050.0,68049.0,1.89713696]
[1722057266610,0.11127073,68050.0,68049.0,1.89713696]
[1722057267013,0.04506629,68050.0,68049.0,1.77503957]
[1722057267313,0.06711479,68050.0,68049.0,1.89713856]
[1722057267820,0.11127534,68050.0,68049.0,1.89713856]
[1722057269889,0.13432975,68050.0,68049.0,1.89713856]
[1722057270095,0.11127534,68050.0,68049.0,1.89713856]
[1722057270529,0.11128237,68050.0,68049.0,1.89713743]
[1722057273331,0.04506629,68050.0,68049.0,1.89713743]
[1722057273547,0.0681207,68050.0,68049.0,1.89713743]
[1722057273990,0.0681207,68050.0,68049.0,1.89713736]
[1722057274618,0.04506629,68050.0,68049.0,1.89713736]
[1722057274963,0.06713062,68050.0,68049.0,1.89713736]
[1722057277384,0.06712923,68050.0,68049.0,1.89713621]
[1722057278010,0.09018369,68050.0,68049.0,1.89713621]
[1722057278340,0.06712923,68050.0,68049.0,1.89713621]
[1722057280655,0.00090574,68050.0,68049.0,1.77503957]
[1722057280952,0.06712872,68050.0,68049.0,1.89713619]
[1722057281685,0.09018309,68050.0,68049.0,1.89713619]
[1722057281887,0.06712872,68050.0,68049.0,1.89713619]
[1722057283389,0.00090574,68050.0,68049.0,1.89713619]
[1722057285338,0.02396007,68050.0,68049.0,1.89713619]
[1722057285868,0.067128,68050.0,68049.0,1.89713619]
[1722057287728,0.06712756,68050.0,68049.0,1.89713619]
[1722057288530,0.00090574,68050.0,68049.0,1.89713619]
[1722057288770,0.02396011,68050.0,68049.0,1.89713619]
[1722057289176,0.00090574,68050.0,68049.0,1.89713619]
[1722057291545,0.06712662,68050.0,68049.0,1.89713619]
[1722057292428,0.09018108,68050.0,68049.0,1.89713619]
[1722057294545,0.09018068,68050.0,68049.0,1.89713619]
[1722057294725,0.09018068,68050.0,68049.0,1.82083619]
[1722057294941,0.09018068,68050.0,68049.0,1.75893619]
[1722057298137,0.06712584,68050.0,68049.0,1.75893618]
[1722057298313,0.00090574,68050.0,68049.0,1.63683957]
[1722057298513,0.06712573,68050.0,68049.0,1.75893619]
[1722057299265,0.00090574,68050.0,68049.0,1.75893618]
[1722057299481,0.06712561,68050.0,68049.0,1.75893618]
[1722057300984,0.06712561,68050.0,68049.0,1.75893619]
[1722057300985,0.06712562,68050.0,68049.0,1.75893619]
[1722057301408,0.09018012,68050.0,68049.0,1.75893619]
[1722057301754,0.04936289,68050.0,68049.0,1.75893619]
[1722057302512,0.13765607,68050.0,68049.0,1.75893619]
[1722057303120,0.04936289,68050.0,68049.0,1.75893619]
[1722057303521,0.13765607,68050.0,68049.0,1.75893619]
[1722057304007,0.04936289,68050.0,68049.0,1.75893619]
[1722057304358,0.08920354,68050.0,68049.0,1.75893619]
[1722057304499,0.13766069,68050.0,68049.0,1.75893619]
[1722057304705,0.04936289,68050.0,68049.0,1.75893619]
[1722057304904,0.13766069,68050.0,68049.0,1.75893619]
[1722057305105,0.16071519,68050.0,68049.0,1.75893619]
[1722057305357,0.07241739,68050.0,68049.0,1.75893619]
[1722057305559,0.07241739,68050.0,68049.0,1.63683957]
[1722057305803,0.15471739,68050.0,68049.0,1.63683957]
[1722057306022,0.07241739,68050.0,68049.0,1.63683957]
[1722057306948,0.04936289,68050.0,68049.0,1.63683957]
[1722057307973,0.13765017,68050.0,68049.0,1.63683957]
[1722057308591,0.1376483,68050.0,68049.0,1.63683957]
[1722057309055,0.04936289,68050.0,68049.0,1.63683957]
[1722057309467,0.13764506,68050.0,68049.0,1.63683957]
[1722057309786,0.04936289,68050.0,68049.0,1.63683957]
[1722057310212,0.16069963,68050.0,68049.0,1.63683957]
[1722057310450,0.07241739,68050.0,68049.0,1.71183957]
[1722057310659,0.04936289,68050.0,68049.0,1.71183957]
[1722057311249,0.04936289,68050.0,68049.0,1.89643806]
[1722057311250,0.06711234,68050.0,68049.0,1.89643806]
[1722057313750,0.09016684,68050.0,68049.0,1.89643806]
[1722057314316,0.02396024,68050.0,68049.0,1.77433957]
[1722057314515,0.09016678,68050.0,68049.0,1.89643842]
[1722057314914,0.06711228,68050.0,68049.0,1.89643842]
[1722057317837,0.06711229,68050.0,68049.0,1.89643785]
[1722057319323,0.06711229,68050.0,68049.0,1.81993785]
[1722057319525,0.06711229,68050.0,68049.0,1.89643785]
[1722057319679,0.06711229,68050.0,68049.0,1.82143785]
[1722057321234,0.00090574,68050.0,68049.0,1.69933957]
[1722057321422,0.06711213,68050.0,68049.0,1.82143798]
[1722057321977,0.09016659,68050.0,68049.0,1.82143798]
[1722057323588,0.13720343,68050.0,68049.0,1.82143798]
[1722057324694,0.13720463,68050.0,68049.0,1.69933957]
[1722057324911,0.13720463,68050.0,68049.0,1.82143855]
[1722057327947,0.15927383,68050.0,68049.0,1.69933957]
[1722057328201,0.07099704,68050.0,68049.0,1.69933957]
[1722057328424,0.08918563,68050.0,68049.0,1.69933957]
[1722057328677,0.13622247,68050.0,68049.0,1.69933957]
[1722057331401,0.15927697,68050.0,68049.0,1.69933957]
[1722057331735,0.13622247,68050.0,68049.0,1.63683957]
[1722057334557,0.15927697,68050.0,68049.0,1.63683957]
[1722057335091,0.15927238,68050.0,68049.0,1.63683957]
[1722057336223,0.13621788,68050.0,68049.0,1.63683957]
[1722057338192,0.04794258,68050.0,68049.0,1.63683957]
[1722057338403,0.13621788,68050.0,68049.0,1.63683957]
[1722057338640,0.1362189,68050.0,68049.0,1.63683957]
[1722057342067,0.13622123,68050.0,68049.0,1.63683957]
[1722057344162,0.03622123,68050.0,68049.0,1.63683957]
[1722057344871,0.03622123,68050.0,68049.0,1.56033957]
[1722057345084,0.03622123,68050.0,68049.0,1.63683957]
[1722057345228,0.03622123,68050.0,68049.0,0.60817257]
[1722057347282,0.03622123,68050.0,68049.0,0.53167257]
[1722057347283,0.12803165,68050.0,68049.0,0.53167257]
[1722057347491,0.23591042,68050.0,68049.0,0.53167257]
[1722057351305,0.25896532,68050.0,68049.0,0.53167257]
[1722057351898,0.23591042,68050.0,68049.0,0.53167257]
[1722057352484,0.38286042,68050.0,68049.0,0.53167257]
[1722057353633,0.67676142,68050.0,68049.0,0.53167257]
[1722057354960,0.69981632,68050.0,68049.0,0.53167257]
[1722057355160,0.59981632,68050.0,68049.0,0.53167257]
[1722057355576,0.89371732,68050.0,68049.0,0.53167257]
[1722057356191,1.00407212,68050.0,68049.0,0.53167257]
[1722057356396,0.98101722,68050.0,68049.0,0.53167257]
[1722057357495,0.87066242,68050.0,68049.0,0.53167257]
[1722057360096,0.440851,68050.0,68049.0,0.75107257]
[1722057360705,0.734752,68050.0,68049.0,0.75107257]
[1722057360900,0.440851,68050.0,68049.0,0.75107257]
[1722057363932,0.46390591,68050.0,68049.0,0.66997257]
[1722057364419,0.440851,68050.0,68049.0,0.66997257]
[1722057364644,0.734752,68050.0,68049.0,0.66997257]
[1722057364884,0.440851,68050.0,68049.0,0.66997257]
[1722057365365,0.47349927,68050.0,68049.0,0.66997257]
[1722057367662,0.49655418,68050.0,68049.0,0.66997257]
[1722057368664,0.47349927,68050.0,68049.0,0.66997257]
[1722057371520,0.58386451,68050.0,68049.0,0.66997257]
[1722057372120,0.47349927,68050.0,68049.0,0.66997257]
[1722057372317,0.58387651,68050.0,68049.0,0.66997257]
[1722057374393,0.58471651,68050.0,68049.0,0.66997257]
[1722057375957,0.47433927,68050.0,68049.0,0.66997257]
[1722057376221,0.58472704,68050.0,68049.0,0.66997257]
[1722057376527,0.60778194,68050.0,68049.0,0.66997257]
[1722057377065,0.58472704,68050.0,68049.0,0.66997257]
[1722057379190,0.47433927,68050.0,68049.0,0.66997257]
[1722057379346,0.58472751,68050.0,68049.0,0.66997257]
[1722057382654,0.58472842,68050.0,68049.0,0.66997257]
[1722057385732,0.29082742,68050.0,68049.0,0.66997257]
[1722057386148,0.18043827,68050.0,68049.0,0.66997257]
[1722057386294,0.29082969,68050.0,68049.0,0.66997257]
[1722057389723,0.2908337,68050.0,68049.0,0.66997257]
[1722057392815,0.29083745,68050.0,68049.0,0.66997257]
[1722057393057,0.18043827,68050.0,68049.0,0.66997257]
[1722057393257,0.29083745,68050.0,68049.0,0.66997257]
[1722057394121,0.14388745,68050.0,68049.0,0.66997257]
[1722057394371,0.29083745,68050.0,68049.0,0.66997257]
[1722057395594,0.14388745,68050.0,68049.0,0.66997257]
[1722057396615,0.14388896,68050.0,68049.0,0.66997257]
[1722057397054,0.16694386,68050.0,68049.0,0.66997257]
[1722057398008,0.14388896,68050.0,68049.0,0.66997257]
[1722057399236,0.14388896,68050.0,68049.0,0.81692457]
[1722057399577,0.14388896,68050.0,68049.0,0.66997257]
[1722057399921,0.03348827,68050.0,68049.0,0.66997257]
[1722057400110,0.14388887,68050.0,68049.0,0.66997257]
[1722057401202,0.16694377,68050.0,68049.0,0.66997257]
[1722057401637,0.16694377,68050.0,68049.0,1.48333457]
[1722057401823,0.05654317,68050.0,68049.0,1.89934416]
[1722057402175,0.09013169,68050.0,68049.0,1.89934416]
[1722057402378,0.06707679,68050.0,68049.0,1.89934416]
[1722057403244,0.00084,68050.0,68049.0,1.89934416]
[1722057403393,0.00084,68050.0,68049.0,1.89933463]
[1722057403712,0.04498307,68050.0,68049.0,1.89933463]
[1722057404127,0.00084,68050.0,68049.0,1.89933463]
[1722057405674,0.02389451,68050.0,68049.0,1.89933463]
[1722057406962,0.02389451,68050.0,68049.0,1.89933722]
[1722057407722,0.06802919,68050.0,68049.0,1.89933722]
[1722057407966,0.02389451,68050.0,68049.0,1.89933722]
[1722057408385,0.06802745,68050.0,68049.0,1.89933722]
[1722057408511,0.02389451,68050.0,68049.0,1.89933722]
[1722057409422,0.06802624,68050.0,68049.0,1.89933722]
[1722057409842,0.04497173,68050.0,68049.0,1.89933722]
[1722057410230,0.00084,68050.0,68049.0,1.77723957]
[1722057410436,0.04497158,68050.0,68049.0,1.89933708]
[1722057411489,0.04497158,68050.0,68049.0,1.90816598]
[1722057413061,0.06802613,68050.0,68049.0,1.90816598]
[1722057413389,0.04497158,68050.0,68049.0,1.90816598]
[1722057413620,0.00084,68050.0,68049.0,1.90816598]
[1722057413781,0.04496693,68050.0,68049.0,1.90816598]
[1722057416672,0.06802148,68050.0,68049.0,1.90816598]
[1722057416878,0.04496693,68050.0,68049.0,1.90816598]
[1722057417075,0.00084,68050.0,68049.0,1.78606847]
[1722057417274,0.04496462,68050.0,68049.0,1.83166598]
[1722057417480,0.04496462,68050.0,68049.0,1.90816598]
[1722057419878,0.06801917,68050.0,68049.0,1.90816598]
[1722057420567,0.06801751,68050.0,68049.0,1.90816598]
[1722057421941,0.06801751,68050.0,68049.0,1.83166598]
[1722057422141,0.06801751,68050.0,68049.0,1.90816598]
[1722057423105,0.06801696,68050.0,68049.0,1.90816598]
[1722057425564,0.04496241,68050.0,68049.0,1.90816598]
[1722057428093,0.00084,68050.0,68049.0,1.78606847]
[1722057428454,0.04496243,68050.0,68049.0,1.90816599]
[1722057428781,0.0680166,68050.0,68049.0,1.90816599]
[1722057430005,0.04496243,68050.0,68049.0,1.90816599]
[1722057430408,0.04496339,68050.0,68049.0,1.908166]
[1722057433226,0.06801794,68050.0,68049.0,1.908166]
[1722057433566,0.04496339,68050.0,68049.0,1.908166]
[1722057433718,0.04496512,68050.0,68049.0,1.90816599]
[1722057436954,0.06801967,68050.0,68049.0,1.90816599]
[1722057437149,0.02389455,68050.0,68049.0,1.78606847]
[1722057437351,0.06802222,68050.0,68049.0,1.90816588]
[1722057438078,0.04496767,68050.0,68049.0,1.90816588]
[1722057440808,0.04497278,68050.0,68049.0,1.90816544]
[1722057440999,0.00084,68050.0,68049.0,1.90816544]
[1722057441505,0.06802729,68050.0,68049.0,1.90816544]
[1722057442003,0.02389451,68050.0,68049.0,1.90816544]
[1722057444306,0.02389451,68050.0,68049.0,1.90816573]
[1722057444670,0.00084,68050.0,68049.0,1.90816573]
[1722057446580,0.06703917,68050.0,68049.0,1.90816573]
[1722057447772,0.0901299,68050.0,68049.0,1.90816562]
[1722057448176,0.06707539,68050.0,68049.0,1.90816562]
[1722057451019,0.0901299,68050.0,68049.0,1.90816562]
[1722057451282,0.02389451,68050.0,68049.0,1.78606847]
[1722057451454,0.09013086,68050.0,68049.0,1.90816562]
[1722057451859,0.02389451,68050.0,68049.0,1.90816562]
[1722057452669,0.00084,68050.0,68049.0,1.90816562]
[1722057452834,0.00084,68050.0,68049.0,1.83166562]
[1722057453036,0.00084,68050.0,68049.0,1.90816562]
[1722057453256,0.00084,68050.0,68049.0,1.82956562]
[1722057454509,0.00084,68050.0,68049.0,1.70746847]
[1722057454709,0.00084,68050.0,68049.0,1.82956563]
[1722057455843,0.00084,68050.0,68049.0,1.82073673]
[1722057456284,0.02389451,68050.0,68049.0,1.82073673]
[1722057458117,0.02389451,68050.0,68049.0,1.40473457]
[1722057458452,0.02389451,68050.0,68049.0,1.52683173]
[1722057461500,0.02389451,68050.0,68049.0,1.52783173]
[1722057462866,0.00084,68050.0,68049.0,1.52783173]
[1722057463639,0.00084,68050.0,68049.0,1.45133173]
[1722057464253,0.00084,68050.0,68049.0,1.52783173]
[1722057464580,0.00084,68050.0,68049.0,1.52783215]
[1722057466244,0.02389455,68050.0,68049.0,1.52783215]
[1722057467353,0.00084,68050.0,68049.0,1.52783215]
[1722057468954,0.00084,68050.0,68049.0,1.60313215]
[1722057470822,0.02389451,68050.0,68049.0,1.60313215]
[1722057471726,0.00084,68050.0,68049.0,1.60313215]
[1722057474987,0.02389451,68050.0,68049.0,1.89703715]
[1722057475223,0.00084,68050.0,68049.0,1.89703715]
[1722057475426,0.00084,68050.0,68049.0,1.77493957]
[1722057475627,0.00084,68050.0,68049.0,1.89703715]
[1722057478494,0.02389447,68050.0,68049.0,1.89703715]
[1722057478890,0.00084,68050.0,68049.0,1.89703715]
[1722057479082,0.12499847,68050.0,68049.0,1.89703701]
[1722057481552,0.03668694,68050.0,68049.0,1.77493957]
[1722057481698,0.08914886,68050.0,68049.0,1.89703891]
[1722057481899,0.1249958,68050.0,68049.0,1.89703891]
[1722057482155,0.14805035,68050.0,68049.0,1.89703891]
[1722057483379,0.1249958,68050.0,68049.0,1.89703891]
[1722057484525,0.12499316,68050.0,68049.0,1.89703891]
[1722057485032,0.03668694,68050.0,68049.0,1.77493957]
[1722057485248,0.08914621,68050.0,68049.0,1.89703884]
[1722057485424,0.12499315,68050.0,68049.0,1.89703884]
[1722057486154,0.12499315,68050.0,68049.0,1.60313384]
[1722057486305,0.12499315,68050.0,68049.0,1.46603384]
[1722057486507,0.1480477,68050.0,68049.0,1.46603384]
[1722057486851,0.12499315,68050.0,68049.0,1.46603384]
[1722057488524,0.12499166,68050.0,68049.0,1.46603457]
[1722057488725,0.03668694,68050.0,68049.0,1.46603457]
[1722057488908,0.12499166,68050.0,68049.0,1.46603457]
[1722057489779,0.14804621,68050.0,68049.0,1.45434063]
[1722057491055,0.22664621,68050.0,68049.0,1.45434063]
[1722057491695,0.14804621,68050.0,68049.0,1.45434063]
[1722057492323,0.14804245,68050.0,68049.0,1.45434063]
[1722057493179,0.14804185,68050.0,68049.0,1.45434063]
[1722057495322,0.1249873,68050.0,68049.0,1.45434063]
[1722057495706,0.12498604,68050.0,68049.0,1.45434063]
[1722057498545,0.14804059,68050.0,68049.0,1.45434063]
[1722057498944,0.12498604,68050.0,68049.0,1.45434063]
[1722057499185,0.12498604,68050.0,68049.0,1.33224063]
[1722057499409,0.03668694,68050.0,68049.0,1.45434063]
[1722057499609,0.12498574,68050.0,68049.0,1.45434063]
[1722057501269,0.12498574,68050.0,68049.0,1.74824563]
[1722057501914,0.14804029,68050.0,68049.0,1.74824563]
[1722057506426,0.14804204,68050.0,68049.0,1.74824563]
[1722057509757,0.14804411,68050.0,68049.0,1.62614563]
[1722057509984,0.12498956,68050.0,68049.0,1.74824563]
[1722057513155,0.12499102,68050.0,68049.0,1.74824563]
[1722057513351,0.14804557,68050.0,68049.0,1.74824563]
[1722057513592,0.12499102,68050.0,68049.0,1.74824563]
[1722057516549,0.14804557,68050.0,68049.0,1.74824563]
[1722057516951,0.12499102,68050.0,68049.0,1.74824563]
[1722057519058,0.12499102,68050.0,68049.0,1.45434063]
[1722057520134,0.05974153,68050.0,68049.0,1.33224063]
[1722057520283,0.05974153,68050.0,68049.0,1.45434064]
[1722057520284,0.1122033,68050.0,68049.0,1.45434064]
[1722057520491,0.14805024,68050.0,68049.0,1.45434064]
[1722057522182,0.05974153,68050.0,68049.0,1.45434064]
[1722057522416,0.03668694,68050.0,68049.0,1.45434064]
[1722057523632,0.03608364,68050.0,68049.0,1.45434064]
[1722057525879,0.11738364,68050.0,68049.0,1.16043564]
[1722057526855,0.11738364,68050.0,68049.0,0.64307864]
[1722057526856,0.49453932,68050.0,68049.0,0.64307864]
[1722057527026,0.49453932,68050.0,68049.0,0.52097863]
[1722057527027,0.64148932,68050.0,68049.0,0.52097863]
[1722057527254,0.61843464,68050.0,68049.0,0.52097863]